{"text_format":"1","workbook":"xlsx","n_sheets":2,"sheets":["보통교과","전문교과"],"not_rendered":{"charts":0,"images":0,"macros":1,"external_links":0,"defined_names":0,"comments":0,"pivot_tables":0},"unopened":[],"bounds":{"document_bytes":16777216,"sheet_cells":100000,"rows_first":2000,"rows_last":500,"rows_between":2000,"halvings":0,"cell_chars":16384,"cell_head_chars":4096},"cells_cut":0,"cells_raw":0,"read":"whole","date_system":"1900"}

{"sheet":"보통교과","index":0,"n_rows":39,"n_cols":11,"rows_kept":39,"cut":false,"hidden":false,"merged":[[1,9,11,15],[1,2,1,3],[37,2,37,3],[19,1,20,1],[19,5,20,5],[37,1,38,1],[18,0,18,8],[36,0,36,8],[1,1,2,1],[1,6,1,7],[1,5,2,5],[19,2,19,3],[19,6,19,7],[37,5,38,5],[37,6,37,7]]}
[]
[null,"세부과목명","1학년 1학기",null,null,"세부과목명","1학년 2학기",null,null,"<유의사항>\n - 학기별 1과목당 단위수 및 석차등급을 기재하여야 합니다.\n   * 졸업예정자는 3학년 1학기까지, 졸업자는 3학년 2학기까지 성적을 입력\n - 석차등급이 표기가 되지 않은 과목은 제외합니다.(음악, 미술, 체육 등)\n - 평균석차등급이 3.5이내인 자만 추천이 가능합니다. (예시 : 3.51는 추천불가)\n - 평균석차등급은 자동계산이 되므로, 임의로 행,열 삽입 등 금지\n   (학기별 세부과목이 많아 행 삽입이 필요한 경우, 삽입된 부분이 평균석차등급 자동계산값의 범위에 포함될 수 있도록 주의)"]
[null,null,"단위수","석차등급",null,null,"단위수","석차등급"]
[]
[]
[]
[]
[]
[]
[]
[]
[]
[]
[null,null,null,null,null,null,null,null,null,"평균석차등급",{"$f":"(SUMPRODUCT(C4:C18,D4:D18)+SUMPRODUCT(G4:G18,H4:H18)+SUMPRODUCT(C22:C36,D22:D36)+SUMPRODUCT(G22:G36,H22:H36)+SUMPRODUCT(C40:C54,D40:D54)+SUMPRODUCT(G40:G54,H40:H54))/SUM(C4:C18,G4:G18,C22:C36,G22:G36,C40:C54,G40:G54)","v":{"$error":"#DIV/0!"}}]
[]
[]
[]
[]
[]
[null,"세부과목명","2학년 1학기",null,null,"세부과목명","2학년 2학기"]
[null,null,"단위수","석차등급",null,null,"단위수","석차등급"]
[]
[]
[]
[]
[]
[]
[]
[]
[]
[]
[]
[]
[]
[]
[]
[]
[null,"세부과목명","3학년 1학기",null,null,"세부과목명","3학년 2학기"]
[null,null,"단위수","석차등급",null,null,"단위수","석차등급"]

{"sheet":"전문교과","index":1,"n_rows":56,"n_cols":14,"rows_kept":56,"cut":false,"hidden":false,"merged":[[2,11,12,17],[2,1,3,1],[2,2,2,3],[2,6,3,6],[2,7,2,8],[19,0,19,9],[21,7,21,8],[38,0,38,9],[39,6,40,6],[39,7,39,8],[39,1,40,1],[39,2,39,3],[21,1,22,1],[21,2,21,3],[21,6,22,6]]}
[]
[]
[null,"세부과목명","1학년 1학기",null,null,null,"세부과목명","1학년 2학기",null,null,null,"<유의사항>\n - 학기별 전문교과목의 성취도를 입력하십시오.\n - 성취도는 A~E 등급으로 입력하십시오.(대소문자 구분 없음)\n - 성취도 환산 점수가 0이상이고, 전문교과 A비율이 50% 이상일 경우 해당으로 표시됩니다.\n - 전문교과 B이상 및 전문교과 A비율은 자동계산이 되므로, 임의 행,열 삽입 등 금지\n   (학기별 세부과목이 많아 행 삽입이 필요한 경우, 삽입된 부분이 전문교과 B이상 및 전문교과 A비율 자동계산값의 범위에\n    포함되어야 하며, 특히 E와 J열의 vlookup함수는 반드시 조작을 해주어야 계산값에 포함되므로 주의 )"]
[null,null,"단위수","성취도",null,null,null,"단위수","성취도"]
[null,null,null,null,{"$f":"VLOOKUP(D5,$L$18:$M$24,2)","v":""},null,null,null,null,{"$f":"VLOOKUP(I5,$L$18:$M$24,2)","v":""}]
[null,null,null,null,{"$f":"VLOOKUP(D6,$L$18:$M$24,2)","v":""},null,null,null,null,{"$f":"VLOOKUP(I6,$L$18:$M$24,2)","v":""}]
[null,null,null,null,"",null,null,null,null,""]
[null,null,null,null,"",null,null,null,null,""]
[null,null,null,null,"",null,null,null,null,""]
[null,null,null,null,"",null,null,null,null,""]
[null,null,null,null,"",null,null,null,null,""]
[null,null,null,null,"",null,null,null,null,""]
[null,null,null,null,"",null,null,null,null,""]
[null,null,null,null,"",null,null,null,null,""]
[null,null,null,null,"",null,null,null,null,"",null,"전문교과 B이상",{"$f":"SUM(E5:E19,J5:J19,E24:E38,J24:J38,E42:E56,J42:J56)/COUNTA(D5:D19,I5:I19,D24:D38,I24:I38,D42:D56,I42:I56)","v":{"$error":"#DIV/0!"}},{"$f":"IF(M15>=0,\"해당\",\"미해당\")","v":{"$error":"#DIV/0!"}}]
[null,null,null,null,"",null,null,null,null,"",null,"전문교과 A비율",{"$f":"(COUNTIF(D5:$D$19,\"A\")+COUNTIF($I$5:$I$19,\"A\")+COUNTIF($D$24:$D$38,\"A\")+COUNTIF($I$24:$I$38,\"A\")+COUNTIF($D$42:$D$56,\"A\")++COUNTIF($I$42:$I$56,\"A\"))/(COUNTA(D5:D19,I5:I19,D24:D38,I24:I38,D42:D56,I42:I56))","v":{"$error":"#DIV/0!"}},{"$f":"IF(M16>=50%,\"해당\",\"미해당\")","v":{"$error":"#DIV/0!"}}]
[null,null,null,null,"",null,null,null,null,""]
[null,null,null,null,"",null,null,null,null,"",null,"성취도 등급","환산점수"]
[null,null,null,null,"",null,null,null,null,"",null,"A",1]
[null,null,null,null,null,null,null,null,null,null,null,"B",0]
[null,null,null,null,null,null,null,null,null,null,null,"C",-1]
[null,"세부과목명","2학년 1학기",null,null,null,"세부과목명","2학년 2학기",null,null,null,"D",-2]
[null,null,"단위수","성취도",null,null,null,"단위수","성취도",null,null,"E",-3]
[null,null,null,null,{"$f":"VLOOKUP(D24,$L$18:$M$24,2)","v":""},null,null,null,null,{"$f":"VLOOKUP(I24,$L$18:$M$24,2)","v":""},null,0,{"$f":"\"\"","v":""}]
[null,null,null,null,{"$f":"VLOOKUP(D25,$L$18:$M$24,2)","v":""},null,null,null,null,{"$f":"VLOOKUP(I25,$L$18:$M$24,2)","v":""}]
[null,null,null,null,"",null,null,null,null,""]
[null,null,null,null,"",null,null,null,null,""]
[null,null,null,null,"",null,null,null,null,""]
[null,null,null,null,"",null,null,null,null,""]
[null,null,null,null,"",null,null,null,null,""]
[null,null,null,null,"",null,null,null,null,""]
[null,null,null,null,"",null,null,null,null,""]
[null,null,null,null,"",null,null,null,null,""]
[null,null,null,null,"",null,null,null,null,""]
[null,null,null,null,"",null,null,null,null,""]
[null,null,null,null,"",null,null,null,null,""]
[null,null,null,null,"",null,null,null,null,""]
[null,null,null,null,"",null,null,null,null,""]
[]
[null,"세부과목명","3학년 1학기",null,null,null,"세부과목명","3학년 2학기"]
[null,null,"단위수","성취도",null,null,null,"단위수","성취도"]
[null,null,null,null,{"$f":"VLOOKUP(D42,$L$18:$M$24,2)","v":""},null,null,null,null,{"$f":"VLOOKUP(I42,$L$18:$M$24,2)","v":""}]
[null,null,null,null,{"$f":"VLOOKUP(D43,$L$18:$M$24,2)","v":""},null,null,null,null,{"$f":"VLOOKUP(I43,$L$18:$M$24,2)","v":""}]
[null,null,null,null,"",null,null,null,null,""]
[null,null,null,null,"",null,null,null,null,""]
[null,null,null,null,"",null,null,null,null,""]
[null,null,null,null,"",null,null,null,null,""]
[null,null,null,null,"",null,null,null,null,""]
[null,null,null,null,"",null,null,null,null,""]
[null,null,null,null,"",null,null,null,null,""]
[null,null,null,null,"",null,null,null,null,""]
[null,null,null,null,"",null,null,null,null,""]
[null,null,null,null,"",null,null,null,null,""]
[null,null,null,null,"",null,null,null,null,""]
[null,null,null,null,"",null,null,null,null,""]
[null,null,null,null,"",null,null,null,null,""]